bitfinex/quotes_ETHUSD_20250517
["timestamp","ask_amount","ask_price","bid_price","bid_amount"]
[1747444020914,4.01445202,2491.0,2490.6,4.67541406]
[1747444021070,4.01493556,2490.7,2490.6,4.67541406]
[1747444021294,4.01558045,2490.3,2490.2,4.67541406]
[1747444021494,9.556,2490.4,2489.9,4.01619017]
[1747444021694,9.553,2490.5,2489.7,14.34141406]
[1747444021915,4.01544776,2490.4,2489.9,4.01622203]
[1747444022120,0.36763529,2490.4,2490.0,0.7598]
[1747444022310,4.01570276,2490.3,2490.0,0.7598]
[1747444023000,4.01622555,2489.9,2489.8,4.67541406]
[1747444024329,13.55314428,2490.0,2489.8,4.67541406]
[1747444025318,9.537,2490.0,2489.8,4.67541406]
[1747444025632,9.512,2490.6,2489.8,5.95053711]
[1747444025932,13.5271001,2490.6,2490.1,4.01578158]
[1747444026120,4.0154192,2490.4,2489.9,5.43521406]
[1747444026431,9.512,2490.6,2490.1,9.667]
[1747444026795,9.526,2490.9,2490.1,13.68281984]
[1747444026995,4.01556107,2490.4,2490.2,4.67541406]
[1747444027196,4.01556107,2490.4,2490.3,4.67541406]
[1747444027395,4.38428533,2490.4,2490.3,4.67541406]
[1747444027594,4.38428533,2490.4,2490.3,14.34241406]
[1747444027829,0.36872426,2490.4,2490.3,14.34241406]
[1747444028232,4.38414346,2490.4,2490.3,14.34241406]
[1747444028637,4.0154192,2490.4,2490.3,14.34241406]
[1747444029029,13.51682674,2490.8,2490.3,14.34241406]
[1747444029233,0.36887699,2490.7,2490.3,14.34241406]
[1747444029432,0.36887699,2490.7,2490.5,0.7598]
[1747444029733,0.36887699,2490.7,2490.5,4.77495582]
[1747444029933,0.36887699,2490.7,2490.5,0.7598]
[1747444030139,0.36887699,2491.0,2490.6,4.01509676]
[1747444030314,0.36887699,2491.0,2490.7,4.67541406]
[1747444030635,0.36887699,2491.0,2490.8,9.666]
[1747444031232,4.01445665,2491.0,2490.8,9.666]
[1747444031437,4.01445665,2491.0,2490.7,4.67541406]
[1747444031438,4.01477436,2490.8,2490.7,4.67541406]
[1747444032226,4.38354289,2490.8,2490.7,4.67541406]
[1747444033411,4.01558045,2490.3,2490.2,4.67541406]
[1747444033653,4.01558045,2490.3,2489.9,9.666]
[1747444033654,13.85236415,2490.3,2490.0,4.67541406]
[1747444033838,4.01584377,2490.2,2490.0,4.67541406]
[1747444034359,4.01590297,2490.1,2490.0,4.67541406]
[1747444034830,4.01576676,2490.2,2490.0,4.67541406]
[1747444034831,4.0157551,2490.2,2490.0,4.67541406]
[1747444035006,0.36876853,2490.1,2490.0,5.43561406]
[1747444035624,4.3846715,2490.1,2490.0,5.43561406]
[1747444035824,4.3846715,2490.1,2490.0,4.67541406]
[1747444036116,4.01590297,2490.1,2490.0,4.67541406]
[1747444038339,4.3850769,2490.1,2490.0,4.67541406]
[1747444039047,4.01654817,2489.7,2489.6,14.34241406]
[1747444039342,4.01638685,2489.8,2489.7,4.67541406]
[1747444039909,13.41838685,2489.8,2489.7,4.67541406]
[1747444040833,4.01719358,2489.3,2489.2,4.67541406]
[1747444041039,13.40719358,2489.3,2489.2,4.67541406]
[1747444041216,4.01719358,2489.3,2489.2,4.67541406]
[1747444041845,0.29614927,2489.5,2489.2,4.67541406]
[1747444041846,13.40091734,2489.5,2489.2,4.67541406]
[1747444042050,4.01719358,2489.3,2489.2,4.67541406]
[1747444042546,0.29959158,2489.9,2489.3,0.8198]
[1747444042846,4.01608519,2490.0,2489.5,4.01678588]
[1747444043037,4.01624977,2489.9,2489.6,9.376]
[1747444043449,9.376,2490.1,2489.6,9.376]
[1747444043646,4.01639217,2489.8,2489.6,9.376]
[1747444044259,4.01617018,2490.0,2489.6,9.376]
[1747444044456,4.01625411,2489.9,2489.6,9.376]
[1747444044821,4.01650727,2489.8,2489.6,9.376]
[1747444045469,4.01630938,2489.9,2489.6,9.376]
[1747444045668,4.01610391,2490.0,2489.6,9.376]
[1747444045958,4.01610391,2490.0,2489.7,4.67541406]
[1747444046157,4.01624546,2489.9,2489.7,4.67541406]
[1747444046670,4.01638685,2489.8,2489.7,4.67541406]
[1747444047094,6.5083324,2491.6,2489.8,0.7806]
[1747444047235,4.01412973,2491.2,2489.9,4.67541406]
[1747444047601,4.01535695,2490.5,2489.9,18.06757457]
[1747444047750,4.01535695,2490.5,2490.0,4.67541406]
[1747444048579,4.01535695,2490.5,2490.0,8.69145332]
[1747444048939,4.01519417,2490.6,2490.1,4.01588593]
[1747444049889,9.344,2490.7,2490.0,4.67541406]
[1747444050060,4.01523632,2490.6,2490.0,8.69140246]
[1747444050433,4.01523632,2490.6,2490.1,4.01588512]
[1747444051066,4.01528201,2490.5,2490.0,8.69140373]
[1747444051267,2.406,2490.2,2488.1,0.8071]
[1747444051499,4.01712846,2489.4,2488.7,0.8071]
[1747444051699,9.477,2489.5,2488.8,9.375]
[1747444051900,4.01639111,2489.8,2489.0,0.8071]
[1747444052125,4.01663224,2489.7,2489.1,4.01740135]
[1747444052287,0.58744591,2490.4,2489.0,0.8071]
[1747444052493,4.01636012,2489.9,2489.3,4.01710938]
[1747444052788,4.01636012,2489.9,2489.4,9.375]
[1747444053113,4.0161137,2490.0,2489.4,13.39200528]
[1747444053408,4.01607378,2490.0,2489.5,4.82386042]
[1747444053606,13.47068713,2490.3,2489.7,4.0164624]
[1747444053809,4.01581119,2490.2,2489.7,4.0164624]
[1747444054171,4.016281,2489.9,2489.5,0.8071]
[1747444054400,4.01614425,2490.0,2489.8,9.375]
[1747444054800,4.01767114,2489.1,2488.8,0.8216]
[1747444055006,9.468,2489.4,2488.8,0.8216]
[1747444055192,4.0178392,2488.9,2488.8,0.8216]
[1747444055910,4.0177539,2489.0,2488.8,0.8216]
[1747444056072,9.468,2489.4,2488.8,0.8216]
[1747444056276,9.45,2489.4,2488.8,0.8216]
[1747444056501,4.01728464,2489.3,2488.8,0.8216]
[1747444056704,4.01695169,2489.5,2488.9,4.67541406]
[1747444056886,4.01695169,2489.5,2488.9,8.69317287]
[1747444057314,4.01695169,2489.5,2489.0,4.01767171]
[1747444057613,12.01623299,2489.9,2489.3,4.01719073]
[1747444057906,4.01687085,2489.5,2489.4,14.05141406]
[1747444058110,4.01679184,2489.6,2489.4,14.05141406]
[1747444058306,4.01687085,2489.5,2489.4,4.67541406]
[1747444058608,4.01665891,2489.7,2489.4,14.05141406]
[1747444058814,4.01687085,2489.5,2489.4,14.05141406]
[1747444060036,4.01687085,2489.5,2489.4,4.67541406]
[1747444060336,4.01687085,2489.5,2489.4,14.05141406]
[1747444061140,8.0,2489.9,2489.4,15.53342547]
[1747444061347,4.01682556,2489.6,2489.4,14.05141406]
[1747444061513,4.0167811,2489.6,2489.5,9.376]
[1747444063448,4.01655155,2489.7,2489.5,9.376]
[1747444063751,9.362,2490.6,2489.7,4.76969182]
[1747444063954,4.01539623,2490.5,2489.8,4.67541406]
[1747444064248,4.01578248,2490.2,2489.8,4.67541406]
[1747444064403,4.01565605,2490.3,2489.8,8.69178393]
[1747444064806,4.01576106,2490.2,2489.8,4.67541406]
[1747444065109,4.01558075,2490.3,2489.8,8.69171833]
[1747444065326,4.01542872,2490.4,2489.9,10.39936885]
[1747444065535,4.01558682,2490.3,2490.0,9.376]
[1747444066038,4.01576543,2490.2,2490.0,9.376]
[1747444066400,4.01565926,2490.3,2490.0,9.376]
[1747444067612,4.01585463,2490.2,2490.0,9.376]
[1747444067939,4.01585039,2490.2,2490.0,9.376]
[1747444068503,4.01555951,2490.4,2490.0,9.376]
[1747444068504,4.01564983,2490.3,2490.0,9.376]
[1747444068706,4.0154768,2490.4,2490.0,10.78114141]
[1747444069445,8.0,2491.1,2490.2,4.01565317]
[1747444069741,4.01429087,2491.1,2490.4,4.01541455]
[1747444069943,9.31,2491.2,2490.6,0.786]
[1747444069944,9.327,2491.2,2490.6,0.786]
[1747444070160,9.327,2491.2,2490.7,4.01485585]
[1747444070342,9.327,2491.2,2490.8,14.05041406]
[1747444070654,1.91718787,2491.7,2491.0,4.01433627]
[1747444070820,1.91718787,2491.7,2491.4,0.786]
[1747444071008,1.91718787,2491.7,2491.5,14.05041406]
[1747444071340,1.91718787,2491.7,2491.6,4.67541406]
[1747444071958,5.9305121,2491.7,2491.6,4.67541406]
[1747444073564,1.91718787,2491.7,2491.6,4.67541406]
[1747444073924,1.91718787,2491.7,2491.6,10.87994078]
[1747444074126,0.98854999,2491.7,2491.6,10.87994078]
[1747444074331,0.03089217,2491.7,2491.6,6.20452672]
[1747444075052,0.03089217,2491.7,2491.6,0.786]
[1747444075258,0.03089217,2491.7,2491.6,10.094]
[1747444075627,0.03089217,2491.7,2491.6,14.10748531]
[1747444075831,4.01292873,2492.0,2491.6,0.786]
[1747444076036,4.01270656,2492.1,2491.7,9.308]
[1747444076236,4.01284634,2492.0,2491.7,9.308]
[1747444076462,4.01300696,2491.9,2491.7,9.308]
[1747444076663,4.01292242,2492.0,2491.7,9.308]
[1747444077574,4.01301102,2491.9,2491.6,0.786]
[1747444077773,4.01321208,2491.8,2491.6,9.308]
[1747444078070,8.0,2492.0,2491.6,9.308]
[1747444078254,0.54978758,2492.9,2491.6,10.64018025]
[1747444078435,4.01137429,2493.0,2491.6,14.65356187]
[1747444078436,8.0,2492.7,2491.6,14.65356187]
[1747444078631,8.0,2492.3,2491.7,4.01332423]
[1747444078832,4.01249436,2492.3,2491.8,4.80024032]
[1747444079037,12.01249436,2492.3,2491.8,0.7871]
[1747444079238,4.01222816,2492.4,2491.9,4.01296731]
[1747444079543,12.0120133,2492.6,2491.8,2.73249681]
[1747444079544,4.01236022,2492.3,2491.8,2.73249681]
[1747444079743,4.01205218,2492.5,2491.8,6.74556448]
[1747444080070,4.01221002,2492.4,2491.8,2.73249681]
[1747444080237,4.01260076,2492.2,2491.9,9.307]
[1747444080436,4.01260076,2492.2,2491.6,9.307]
[1747444080437,4.01300212,2491.9,2491.6,9.307]
[1747444080674,4.01268006,2492.1,2491.6,9.307]
[1747444080875,4.01325328,2491.8,2491.5,0.7871]
[1747444081073,4.01340642,2491.7,2491.6,9.307]
[1747444081231,4.01293646,2492.0,2491.6,9.307]
[1747444081548,12.01269026,2492.1,2491.7,9.306]
[1747444081549,8.0,2492.1,2491.7,9.306]
[1747444082330,8.0,2492.1,2491.5,0.7871]
[1747444082683,4.0129465,2492.0,2491.6,9.306]
[1747444083036,8.0,2492.1,2491.6,9.306]
[1747444083037,8.0,2492.1,2491.6,10.63795513]
[1747444083271,4.01224228,2492.4,2491.8,4.01315748]
[1747444083570,4.01175387,2492.7,2492.0,4.01268724]
[1747444083757,4.01188694,2492.6,2492.1,9.306]
[1747444084085,4.01201642,2492.6,2492.2,17.331]
[1747444084236,4.01201642,2492.6,2492.2,26.636]
[1747444084436,4.01178761,2492.7,2492.3,1.59573686]
[1747444084770,4.01179066,2492.7,2492.3,1.59573686]
[1747444085369,4.01179066,2492.7,2492.4,4.67541406]
[1747444085749,4.01179066,2492.7,2492.2,26.636]
[1747444085750,4.01179066,2492.7,2492.5,6.01456814]
[1747444085945,4.01179066,2492.7,2492.6,4.67541406]
[1747444086171,12.01179066,2492.7,2492.6,4.67541406]
[1747444086639,12.91179066,2492.7,2492.6,4.67541406]
[1747444087772,0.763,2494.5,2493.1,0.55]
[1747444087952,0.763,2494.5,2493.2,10.1058]
[1747444088279,9.383,2494.4,2493.2,0.8008]
[1747444088472,4.77246233,2494.1,2493.2,10.1058]
[1747444088770,4.00962309,2494.0,2493.2,9.305]
[1747444088986,8.0,2494.0,2493.2,9.305]
[1747444089173,0.763,2494.1,2493.2,15.04849784]
[1747444089477,0.763,2494.4,2493.3,0.8008]
[1747444089770,9.374,2494.3,2493.4,4.01051902]
[1747444089982,8.0,2494.2,2493.5,4.01039936]
[1747444090190,4.0094807,2494.1,2493.3,0.8008]
[1747444090367,4.0094807,2494.1,2493.3,9.303]
[1747444090368,4.00988564,2493.9,2493.3,9.303]
[1747444090773,4.00969863,2494.0,2493.3,9.303]
[1747444090971,0.763,2494.1,2493.3,9.303]
[1747444091170,0.763,2494.1,2493.5,4.01031204]
[1747444091373,0.7677,2494.6,2493.6,18.1051]
[1747444091547,2.49475176,2495.1,2493.9,0.55]
[1747444091887,8.0,2495.3,2494.8,4.00828567]
[1747444092062,0.7677,2495.6,2494.8,9.303]
[1747444092063,4.00724749,2495.5,2494.8,9.303]
[1747444092247,4.77475738,2495.6,2494.2,13.38523361]
[1747444092248,13.37837851,2495.4,2494.6,4.00854811]
[1747444092453,4.00757656,2495.3,2494.7,9.303]
[1747444092653,13.37844173,2495.4,2494.7,13.31146281]
[1747444092875,9.371,2495.4,2494.9,4.00817146]
[1747444093063,9.371,2495.4,2494.8,4.00826051]
[1747444093281,9.371,2495.4,2494.7,6.11869117]
[1747444093451,9.371,2495.4,2494.9,9.3]
[1747444093945,8.0,2495.3,2494.7,0.7791]
[1747444094148,8.0,2495.3,2494.3,14.08810627]
[1747444094149,4.00796003,2495.1,2494.3,14.08810627]
[1747444094399,4.00796003,2495.1,2494.4,4.00897611]
[1747444095046,1.68916861,2495.5,2494.4,4.00897611]
[1747444095047,9.35,2495.5,2494.9,0.7791]
[1747444095279,9.351,2495.7,2495.1,4.00776506]
[1747444095449,4.77440596,2495.9,2495.0,13.30793049]
[1747444095450,0.7677,2495.9,2495.0,13.30793049]
[1747444095648,4.77427267,2495.9,2495.1,9.3]
[1747444095894,0.7677,2495.9,2495.1,9.3]
[1747444096051,0.7677,2495.9,2494.9,0.7791]
[1747444096052,9.356,2496.0,2494.9,0.7791]
[1747444096389,8.0,2495.6,2495.0,4.00800444]
[1747444096550,9.361,2495.5,2494.9,14.08515163]
[1747444096755,9.361,2495.5,2494.9,10.0771]
[1747444097081,9.361,2495.5,2494.9,14.0852217]
[1747444097290,9.361,2495.5,2494.9,4.7872217]
[1747444097472,8.0,2495.4,2494.9,0.7791]
[1747444097663,4.00776463,2495.2,2494.8,9.298]
[1747444097866,8.0,2495.1,2494.8,9.298]
[1747444098189,8.0,2495.4,2494.7,17.321]
[1747444098357,12.00783785,2495.2,2494.7,17.321]
[1747444098684,4.00843081,2494.8,2494.3,0.7791]
[1747444098886,8.0,2494.4,2494.1,9.298]
[1747444099091,9.35,2494.7,2494.1,9.298]
[1747444099383,12.00877266,2494.6,2494.1,9.298]
[1747444099548,8.0,2494.6,2494.1,9.298]
[1747444099752,8.0,2494.6,2494.1,13.30744282]
[1747444099948,12.00867824,2494.6,2494.1,9.298]
[1747444100148,4.00903891,2494.4,2494.0,0.7791]
[1747444100382,4.00887205,2494.5,2494.0,10.0761]
[1747444100547,12.00868288,2494.6,2494.0,10.0761]
[1747444100548,12.00867989,2494.6,2494.0,10.0761]
[1747444100752,12.00867989,2494.6,2494.0,14.08564078]
[1747444100955,12.00867989,2494.6,2494.1,4.00945042]
[1747444100956,8.0,2494.6,2494.1,4.00945042]
[1747444101154,4.008129,2495.0,2494.0,12.45520072]
[1747444101400,9.319,2495.0,2494.4,4.00896752]
[1747444101560,9.319,2495.0,2494.7,4.00840643]
[1747444101767,9.319,2495.0,2494.7,9.297]
[1747444102179,9.319,2495.0,2494.7,13.30549752]
[1747444102353,9.319,2495.0,2494.7,9.297]
[1747444102980,4.00787682,2495.1,2494.7,10.70546959]
[1747444103191,4.00819517,2494.9,2494.6,0.7791]
[1747444103495,4.00819517,2494.9,2494.4,13.30497722]
[1747444104005,8.0,2495.1,2494.3,0.7791]
[1747444104154,8.0,2495.1,2494.5,9.302]
[1747444104355,0.9,2494.7,2494.5,13.31068756]
[1747444104551,0.9,2494.7,2494.6,5.339616]
[1747444104787,4.00730053,2495.5,2494.9,4.00808752]
[1747444105095,4.00646841,2496.0,2495.0,9.302]
[1747444105096,4.00676878,2495.8,2495.0,9.302]
[1747444105267,4.0058533,2496.4,2495.8,4.00670384]
[1747444105472,4.0057683,2496.4,2495.9,14.08765129]
[1747444105652,0.7677,2496.5,2496.0,9.302]
[1747444106004,4.00597024,2496.3,2496.0,9.302]
[1747444106208,9.332,2496.6,2495.4,0.7946]
[1747444106509,13.33757479,2496.6,2495.6,4.00697033]
[1747444106656,4.00621341,2496.2,2495.7,1.33089703]
[1747444106852,4.00621341,2496.2,2495.7,5.33778242]
[1747444107056,4.00626471,2496.1,2495.7,1.33089703]
[1747444107256,4.00642668,2496.0,2495.7,1.33089703]
[1747444107465,4.00700389,2495.7,2495.5,9.302]
[1747444107798,4.00679848,2495.8,2495.5,9.302]
[1747444108105,4.00730749,2495.5,2495.1,0.7946]
[1747444108260,4.00730749,2495.5,2495.2,9.3]
[1747444108468,4.00763115,2495.3,2495.1,9.3]
[1747444108780,12.00716829,2495.6,2495.2,0.7946]
[1747444109084,4.00764252,2495.3,2495.1,9.3]
[1747444109285,4.00778549,2495.2,2494.9,18.1066]
[1747444109602,8.0,2495.1,2494.6,10.0946]
[1747444109766,12.00786806,2495.1,2494.6,11.10406]
[1747444109965,0.8225,2495.8,2494.7,4.00837552]
[1747444110207,4.00750059,2495.4,2494.8,4.00824886]
[1747444110507,9.303,2495.5,2494.7,0.55]
[1747444110684,13.31026188,2495.5,2494.9,4.00813401]
[1747444110860,9.303,2495.5,2494.9,0.85665737]
[1747444111066,8.0,2495.4,2494.9,9.3]
[1747444111265,4.00765494,2495.3,2494.9,9.3]
[1747444111461,4.00660298,2495.9,2494.9,9.3]
[1747444111462,0.7546,2496.9,2495.2,0.7886]
[1747444111700,9.396,2497.6,2495.8,0.55]
[1747444111862,4.00540396,2496.7,2495.9,0.7886]
[1747444112065,8.0,2496.7,2496.0,9.3]
[1747444112298,13.4071343,2496.8,2496.0,9.3]
[1747444112501,0.7546,2497.1,2496.0,9.3]
[1747444112502,4.0053254,2496.7,2496.0,1.40953114]
[1747444112676,9.413,2496.6,2495.7,9.3]
[1747444112881,8.0,2496.2,2495.7,9.3]
[1747444113083,9.408,2496.1,2495.7,9.3]
[1747444113409,17.404,2496.2,2495.7,9.3]
[1747444114704,21.41009849,2496.2,2495.7,9.3]
[1747444115627,4.00653086,2496.0,2495.2,13.30666812]
[1747444115784,4.00665484,2495.9,2495.2,1.05762842]
[1747444116125,4.00665484,2495.9,2495.2,9.299]
[1747444116323,12.76099486,2496.1,2495.3,4.00743081]
[1747444116621,8.7546,2496.1,2495.2,9.299]
[1747444116918,0.78,2496.8,2496.0,4.00630877]
[1747444117239,9.38,2496.7,2493.1,4.003]
[1747444117532,1.892399,2494.1,2492.5,1.33915408]
[1747444117735,12.01187515,2492.6,2492.5,1.33915408]
[1747444117884,22.08510817,2492.6,2492.5,1.33915408]
[1747444118079,24.22587515,2492.6,2492.5,1.33915408]
[1747444118285,24.7517963,2492.6,2492.5,1.33915408]
[1747444118645,4.01320846,2491.8,2491.3,0.7861]
[1747444118788,8.0,2492.5,2491.3,0.7861]
[1747444118789,8.0,2491.9,2491.3,0.7861]
[1747444119306,12.204,2492.0,2491.3,0.7861]
[1747444119491,8.0,2491.9,2491.3,0.7861]
[1747444119694,4.01327587,2491.8,2491.3,0.7861]
[1747444120095,8.938,2491.9,2491.1,12.089]
[1747444120420,4.01330199,2491.8,2491.1,12.089]
[1747444120620,1.60597407,2492.8,2491.1,12.089]
[1747444120810,8.0,2492.3,2491.2,0.55]
[1747444121122,8.0,2492.3,2491.4,4.01370574]
[1747444121537,20.125,2492.4,2491.3,5.27786861]
[1747444121709,4.01237907,2492.3,2491.3,1.2639]
[1747444121914,4.01237907,2492.3,2491.4,12.094]
[1747444122420,4.01237907,2492.3,2491.4,4.01370098]
[1747444122621,4.01237907,2492.3,2491.5,12.094]
[1747444122925,4.01235973,2492.3,2491.5,17.66502346]
[1747444123127,24.13724594,2492.4,2491.5,16.10748726]
[1747444123621,12.01224594,2492.4,2491.5,16.10748726]
[1747444123991,4.01241638,2492.3,2491.5,16.10748726]
[1747444124788,8.0,2492.4,2490.9,0.7861]
[1747444124993,4.01305774,2491.9,2491.0,12.097]
[1747444125208,12.017,2492.2,2491.1,0.59013727]
[1747444125428,8.0,2492.1,2491.5,4.01355058]
[1747444125616,14.08948107,2493.0,2491.3,4.01396861]
[1747444125617,12.001,2492.6,2491.7,0.8153]
[1747444125925,11.996,2493.2,2492.0,4.01284109]
[1747444126126,1.68916861,2494.2,2492.5,4.01193271]
[1747444126324,4.01021642,2493.7,2493.0,4.01113777]
[1747444126567,4.01029673,2493.6,2493.0,4.01113777]
[1747444126827,4.01029673,2493.6,2493.0,12.099]
[1747444127127,4.01029685,2493.6,2493.0,12.099]
[1747444127312,4.00994466,2493.8,2493.0,12.099]
[1747444127853,4.01061661,2493.4,2492.8,21.33249945]
[1747444128034,8.0,2493.8,2493.1,12.099]
[1747444128349,4.01085488,2493.3,2493.1,12.099]
[1747444128566,4.01010546,2493.7,2492.8,17.321]
[1747444128852,4.01112414,2493.1,2492.5,12.099]
[1747444129137,4.01187515,2492.6,2492.5,12.099]
[1747444129512,4.01147388,2492.9,2492.5,12.099]
[1747444130122,4.01183945,2492.7,2492.5,12.099]
[1747444130439,4.01161814,2492.8,2492.5,12.099]
[1747444130638,4.01146397,2492.9,2492.5,12.099]
[1747444130826,4.01126647,2493.0,2492.5,12.099]
[1747444131337,4.01139235,2492.9,2492.5,12.099]
[1747444131744,4.01128389,2493.0,2492.5,12.099]
[1747444131909,4.01052862,2493.5,2492.9,4.01133952]
[1747444132108,4.01018982,2493.7,2493.1,4.01099619]
[1747444132308,4.01018982,2493.7,2493.1,16.11099619]
[1747444132605,4.0101267,2493.7,2493.1,16.11093362]
[1747444132802,1.68916861,2494.5,2493.2,4.67541406]
[1747444133002,11.791,2494.4,2493.3,4.67541406]
[1747444133207,11.791,2494.4,2493.6,4.01016387]
[1747444133408,11.791,2494.4,2493.5,4.01035641]
[1747444133409,4.00957476,2494.1,2493.5,4.01035641]
[1747444133609,4.00957476,2494.1,2493.6,4.01022238]
[1747444134019,4.00936431,2494.2,2493.7,11.763]
[1747444134214,4.00950706,2494.1,2493.8,4.67541406]
[1747444134732,4.00966181,2494.0,2493.8,4.67541406]
[1747444134927,4.00943062,2494.2,2493.8,4.67541406]
[1747444135134,4.00936573,2494.2,2493.8,4.67541406]
[1747444135337,4.00949424,2494.1,2493.8,4.67541406]
[1747444136013,4.00962309,2494.0,2493.8,4.67541406]
[1747444136935,4.00962309,2494.0,2493.6,11.761]
[1747444137127,4.00952084,2494.1,2493.6,11.761]
[1747444137440,4.00952084,2494.1,2493.6,16.43641406]
[1747444138343,11.791,2494.4,2493.6,16.43641406]
[1747444138645,4.0099993,2493.8,2493.6,4.67541406]
[1747444139042,4.01010546,2493.7,2493.6,4.67541406]
[1747444139203,4.01010546,2493.7,2493.3,4.67541406]
[1747444140043,8.0,2494.3,2493.3,4.67541406]
[1747444140218,4.009728,2494.0,2493.4,10.32954874]
[1747444140428,4.01003852,2493.8,2493.4,4.67541406]
[1747444140626,4.01003852,2493.8,2493.5,4.67541406]
[1747444141952,8.0,2494.1,2493.5,4.67541406]
[1747444142155,8.3641589,2494.7,2493.6,4.67541406]
[1747444142319,8.3641589,2494.7,2493.7,6.29928907]
[1747444142515,11.481,2494.6,2493.8,4.67541406]
[1747444142745,8.0,2494.5,2493.9,11.76]
[1747444143047,8.0,2494.5,2493.8,4.67541406]
[1747444143345,4.0097033,2494.0,2493.8,4.67541406]
[1747444143644,11.453,2494.0,2493.5,4.67541406]
[1747444143950,4.00986023,2493.9,2493.5,4.67541406]
[1747444144546,4.00996853,2493.8,2493.5,4.67541406]
[1747444144725,11.453,2494.0,2493.5,8.68576412]
[1747444144926,4.00839746,2494.8,2493.8,4.00992523]
[1747444145139,4.00858844,2494.7,2494.0,4.76487298]
[1747444145340,11.397,2495.2,2494.1,11.448]
[1747444145538,4.00795251,2495.1,2494.5,4.00872937]
[1747444145739,4.00795251,2495.1,2494.5,4.00869132]
[1747444145940,4.00801603,2495.0,2494.0,0.7553]
[1747444146119,4.00870267,2494.6,2494.1,11.448]
[1747444146848,4.0088425,2494.5,2494.1,11.448]
[1747444147049,4.00879158,2494.6,2494.1,11.448]
[1747444147445,11.384,2495.2,2494.3,4.00910743]
[1747444147446,4.00834879,2494.8,2494.3,4.00910743]
[1747444147747,4.00882941,2494.5,2494.1,11.448]
[1747444148352,0.81167499,2496.0,2494.2,8.8307]
[1747444148555,11.324,2496.1,2494.5,0.55]
[1747444148741,4.0077838,2495.2,2494.6,4.00865589]
[1747444148947,4.00764847,2495.3,2494.7,4.00849242]
[1747444149348,4.00764847,2495.3,2494.7,4.00849801]
[1747444149543,4.00738971,2495.4,2494.7,4.00849801]
[1747444149855,4.00641025,2496.0,2494.7,4.00846653]
[1747444150027,4.00784491,2495.2,2494.8,11.445]
[1747444150627,4.00827296,2494.9,2494.7,11.445]
[1747444150825,8.29798776,2495.4,2494.2,11.445]
[1747444151031,4.00826336,2494.9,2494.3,4.00905473]
[1747444151345,12.00828063,2494.9,2494.2,15.45425189]
[1747444151541,4.00807079,2495.0,2494.3,4.00904368]
[1747444151866,4.00849883,2494.7,2494.2,15.45422816]
[1747444152235,4.00849883,2494.7,2494.2,4.00922816]
[1747444152572,4.0084158,2494.8,2494.3,11.445]
[1747444152943,0.80167094,2494.8,2494.1,0.8307]
[1747444153298,4.00868021,2494.6,2494.2,11.445]
[1747444153460,4.00883575,2494.5,2494.2,11.445]
[1747444153782,4.0087395,2494.6,2494.2,11.445]
[1747444153953,4.00858106,2494.7,2494.2,11.445]
[1747444154555,4.00838517,2494.8,2494.2,15.45428213]
[1747444154756,4.00838517,2494.8,2494.3,4.00912072]
[1747444155445,4.00838517,2494.8,2494.2,15.45421835]
[1747444155848,4.00838517,2494.8,2494.3,4.00904263]
[1747444156043,4.00838517,2494.8,2494.2,15.45421835]
[1747444156044,4.00842046,2494.8,2494.2,15.45417424]
[1747444156283,4.00898281,2494.4,2494.2,11.445]
[1747444156599,4.0088992,2494.5,2494.2,11.445]
[1747444156893,4.0087353,2494.6,2494.2,11.445]
[1747444157352,1.96134638,2496.8,2494.2,15.45426033]
[1747444157353,4.00823484,2494.9,2494.2,15.45426033]
[1747444157696,15.07692113,2495.1,2494.5,4.00876303]
[1747444157846,15.07692113,2495.1,2494.7,4.00844333]
[1747444157847,11.069,2495.1,2494.7,4.00844333]
[1747444158046,0.29988099,2495.5,2494.2,11.445]
[1747444158047,4.00603039,2496.3,2494.8,11.104]
[1747444158251,4.0078672,2495.1,2494.9,11.104]
[1747444158451,4.0078966,2495.1,2494.9,11.104]
[1747444158653,4.00825385,2494.9,2494.8,11.104]
[1747444159109,4.00809245,2495.0,2494.8,11.104]
[1747444159475,4.00818042,2494.9,2494.7,11.104]
[1747444159674,4.00818042,2494.9,2494.6,0.7978]
[1747444159675,4.00849801,2494.7,2494.3,0.7978]
[1747444159876,4.00846415,2494.8,2494.7,11.104]
[1747444161095,4.00826073,2494.9,2494.7,11.104]
[1747444161269,4.00804941,2495.0,2494.7,11.104]
[1747444161670,8.0,2495.2,2494.6,11.104]
[1747444161866,4.00848107,2494.8,2494.6,11.104]
[1747444162072,4.00826626,2494.9,2494.6,11.104]
[1747444162474,4.00833872,2494.8,2494.6,11.104]
[1747444162690,4.00822886,2494.9,2494.6,11.104]
[1747444163402,4.00833795,2494.8,2494.6,11.104]
[1747444164403,12.00770453,2495.2,2494.6,15.77941406]
[1747444164697,4.00849801,2494.7,2494.6,15.77941406]
[1747444165409,8.0,2495.2,2494.6,15.77941406]
[1747444165711,4.00810654,2495.0,2494.7,4.67541406]
[1747444165875,4.00818166,2494.9,2494.7,4.67541406]
[1747444166633,4.00833734,2494.8,2494.7,4.67541406]
[1747444168599,23.58898924,2494.8,2494.7,4.67541406]
[1747444168941,12.00833734,2494.8,2494.7,4.67541406]
[1747444169431,4.00833734,2494.8,2494.7,4.67541406]
[1747444170239,4.00826698,2494.9,2494.7,4.67541406]
[1747444170403,4.2298111,2495.0,2494.7,4.67541406]
[1747444170597,4.00819663,2494.9,2494.7,15.45641406]
[1747444170927,4.22985735,2495.0,2494.7,15.45641406]
[1747444171129,4.00813688,2495.0,2494.7,15.45641406]
[1747444171507,4.00821762,2494.9,2494.7,15.45641406]
[1747444171727,4.00821762,2494.9,2494.8,4.67541406]
[1747444172438,8.0,2495.1,2494.8,4.67541406]
[1747444172639,0.29408995,2495.8,2494.9,4.67541406]
[1747444172640,4.00689185,2495.7,2494.9,4.67541406]
[1747444172824,4.00669257,2495.9,2495.2,4.00766635]
[1747444173028,4.00619708,2496.2,2495.0,5.49471406]
[1747444173029,14.67873583,2495.8,2495.3,15.45641406]
[1747444173225,4.00666877,2495.9,2495.4,4.67541406]